fUST/lending_fUST_20240602
["ID","MTS","AMOUNT","RATE_DAILY","PERIOD"]
[328400317,1717339843524,-352.73707646,0.00019,2]
[328400318,1717339843535,-352.73707642,0.00019705,2]
[328400319,1717339843545,-352.73707642,0.00020409,2]
[328400320,1717339843555,-6215.46613204,0.00021594,2]
[328400321,1717339843565,-151.0,0.00021594,2]
[328400322,1717339843575,-151.0,0.00021594,2]
[328400323,1717339843585,-214.7,0.00021854,5]
[328400324,1717339843595,-258.717832,0.00021855,2]
[328400325,1717339843605,-258.717832,0.00021855,2]
[328400326,1717339843614,-155.00853349,0.0002189,2]
[328400327,1717339843624,-565.0,0.000219,2]
[328400328,1717339843634,-565.0,0.000219,2]
[328400329,1717339843643,-194.383485,0.000219,2]
[328400330,1717339843655,-14379.34942811,0.00021918,2]
[328400362,1717339846231,-352.73707642,0.00021114,2]
[328400363,1717339846242,-990.40230539,0.00021918,2]
[328400364,1717339846251,-10081.22548464,0.00021918,2]
[328400424,1717339888188,3378.86907174,0.00014305,2]
[328400439,1717339943998,16175.12436626,0.00014305,2]
[328400442,1717339966559,1178.83735223,0.00014305,2]
[328400640,1717341032552,-259.02814002,0.00017774,2]
[328400642,1717341032562,-1152.8486069,0.00018734,2]
[328400644,1717341032572,-7909.30313863,0.00018937,2]
[328400646,1717341032583,-2684.34073309,0.00018938,2]
[328400648,1717341032594,-500.0,0.00019178,2]
[328400650,1717341032604,-178.2120782,0.00019341,2]
[328400652,1717341032614,-424.8978482,0.00019367,2]
[328400653,1717341032625,-150.0,0.00019755,2]
[328400654,1717341032636,-7362.59919368,0.0001999,2]
[328400655,1717341032646,-497.0,0.00020265,2]
[328400656,1717341032658,-500.0,0.00020547,2]
[328400657,1717341032668,-176.36853821,0.00020964,2]
[328400658,1717341032678,-156.89663539,0.00021064,2]
[328400659,1717341032689,-151.0,0.00021265,5]
[328400660,1717341032699,-402.3924714,0.00021288,2]
[328400661,1717341032709,-151.0,0.0002155,5]
[328400662,1717341032720,-279.93786873,0.00021697,2]
[328400663,1717341032730,-151.0,0.00021834,5]
[328400664,1717341032741,-270.0,0.000219,2]
[328400665,1717341032754,-204.0,0.000219,2]
[328400666,1717341032766,-4233.16048784,0.00021906,2]
[328400667,1717341032776,-946.57501057,0.00021917,2]
[328400668,1717341032787,-166.666666,0.00021918,2]
[328400669,1717341032799,-3468.75194887,0.00021918,2]
[328400670,1717341032813,-302.0,0.00021918,2]
[328400671,1717341032826,-565.50431116,0.00021918,2]
[328400701,1717341038446,-22892.94089772,0.00021905,2]
[328400703,1717341038456,-12563.52396797,0.00021918,2]
[328400705,1717341038466,-12837.03941921,0.00021918,2]
[328400706,1717341038475,-1472.4968362,0.00021918,2]
[328400708,1717341038485,-958.13687445,0.00021918,2]
[328400710,1717341038495,-461.74457998,0.00021918,2]
[328400712,1717341038504,-224.89839615,0.00021918,2]
[328400713,1717341038514,-4126.48756248,0.00021918,10]
[328400714,1717341038524,-3986.84838005,0.00021918,2]
[328400715,1717341038534,-1000.0,0.00022,2]
[328400717,1717341038544,-3226.29834835,0.00022,2]
[328400718,1717341038554,-1197.44256276,0.000221,2]
[328400720,1717341038563,-151.0,0.00022118,5]
[328400721,1717341038573,-156.89663537,0.00022326,2]
[328400722,1717341038582,-151.0,0.00022403,5]
[328400723,1717341038591,-166.666666,0.00022431,2]
[328400724,1717341038601,-160.02944933,0.00022463,2]
[328400725,1717341038611,-453.72885729,0.00022499,2]
[328400726,1717341038636,-2755.01149735,0.00022499,2]
[328400727,1717341038645,-1000.0,0.000225,2]
[328400728,1717341038655,-151.0,0.00022687,5]
[328400729,1717341038665,-244.67150198,0.00022901,2]
[328400730,1717341038675,-166.666666,0.00022944,2]
[328400731,1717341038685,-151.0,0.00022972,5]
[328400732,1717341038695,-271.82588098,0.00022998,2]
[328400733,1717341038705,-1870.54761155,0.00022998,2]
[328400734,1717341038715,-164.30390821,0.00022998,2]
[328400735,1717341038724,-305.32845211,0.00022999,2]
[328400736,1717341038734,-206.69949084,0.00023,2]
[328400737,1717341038744,-1176.09930155,0.00023,2]
[328400738,1717341038754,-1000.0,0.00023,2]
[328400739,1717341038765,-154.9690062,0.00023,2]
[328400740,1717341038775,-154.9690062,0.00023,2]
[328400741,1717341038784,-150.96980604,0.00023093,7]
[328400742,1717341038795,-158.30450228,0.00023096,2]
[328400743,1717341038804,-177.86809875,0.00023097,2]
[328400744,1717341038813,-258.68943157,0.00023143,2]
[328400745,1717341038822,-685.62790104,0.00023144,2]
[328400746,1717341038832,-600.0,0.00023145,2]
[328400747,1717341038842,-151.0,0.00023256,5]
[328400748,1717341038852,-115.86226503,0.00023385,2]
[328400749,1717341038864,-40.82180721,0.00023385,2]
[328400750,1717341038873,-600.0,0.00023386,2]
[328400751,1717341038882,-166.666666,0.00023456,2]
[328400752,1717341038892,-151.0,0.0002354,5]
[328400753,1717341038901,-39.99803,0.00023564,4]
[328400913,1717341044894,-584.131166,0.00022877,2]
[328400914,1717341044904,-110.97177604,0.00023564,4]
[328400915,1717341044916,-239.21076541,0.00023568,2]
[328400916,1717341044925,-156.89663537,0.00023589,2]
[328400917,1717341044935,-600.0,0.00023627,2]
[328400918,1717341044944,-155.11068448,0.00023696,2]
[328400919,1717341044953,-155.11151733,0.00023697,2]
[328400920,1717341044963,-523.40016496,0.00023698,2]
[328400921,1717341044973,-302.71490703,0.00023698,2]
[328400922,1717341044982,-292.065583,0.00023699,2]
[328400923,1717341044993,-584.131166,0.00023699,2]
[328400924,1717341045002,-292.065583,0.00023699,2]
[328400925,1717341045011,-292.065583,0.00023699,2]
[328400926,1717341045021,-292.065583,0.00023699,2]
[328400927,1717341045030,-292.065583,0.00023699,2]
[328400928,1717341045039,-292.065583,0.00023699,2]
[328400929,1717341045049,-292.065583,0.00023699,2]
[328400930,1717341045058,-292.065583,0.00023699,2]
[328400931,1717341045067,-292.065583,0.00023699,2]
[328400932,1717341045078,-292.065583,0.00023699,2]
[328400933,1717341045087,-292.065583,0.00023699,2]
[328400934,1717341045097,-292.065583,0.00023699,2]
[328400935,1717341045106,-583.3400056,0.00023699,2]
[328400936,1717341045116,-455.5485078,0.00023699,2]
[328400937,1717341045125,-292.065583,0.00023699,2]
[328400938,1717341045134,-155.13269536,0.00023699,2]
[328400939,1717341045143,-906.19409253,0.00023699,2]
[328400963,1717341046627,-150.0,0.000204,2]
[328400964,1717341046636,-5046.35959342,0.00023699,2]
[328400965,1717341046646,-807.63834648,0.00023699,2]
[328400966,1717341046655,-160.0,0.00023767,2]
[328400967,1717341046666,-836.37406668,0.00023798,2]
[328400968,1717341046676,-154.98135029,0.00023799,2]
[328400969,1717341046685,-20000.0,0.000238,5]
[328400970,1717341046694,-151.0,0.00023825,5]
[328400971,1717341046703,-465.60104146,0.00023849,2]
[328400972,1717341046713,-389.5261777,0.00023849,2]
[328400973,1717341046722,-506.94364208,0.00023849,2]
[328400974,1717341046731,-500.0,0.00023849,2]
[328400975,1717341046741,-303.23545067,0.00023849,2]
[328400976,1717341046751,-440.18653065,0.00023849,2]
[328400977,1717341046764,-27746.30397724,0.0002385,2]
[328400978,1717341046774,-161.07606,0.0002385,2]
[328400979,1717341046783,-600.0,0.00023868,2]
[328400980,1717341046793,-800.0,0.000239,2]
[328400981,1717341046803,-166.666666,0.00023969,2]
[328400982,1717341046812,-150.96980604,0.00024045,2]
[328400983,1717341046821,-270.0,0.000241,2]
[328400984,1717341046832,-270.0,0.000241,2]
[328400985,1717341046841,-540.0,0.000241,2]
[328400986,1717341046851,-151.0,0.00024109,2]
[328400987,1717341046860,-151.0,0.00024109,2]
[328400988,1717341046869,-151.0,0.00024109,2]
[328400989,1717341046878,-151.0,0.00024109,2]
[328400990,1717341046887,-818.93943807,0.00024109,2]
[328400991,1717341046896,-151.0,0.00024109,7]
[328400992,1717341046905,-151.0,0.00024109,7]
[328400993,1717341046915,-200.0,0.0002411,2]
[328400994,1717341046924,-320.0,0.00024315,2]
[328400995,1717341046933,-601.64,0.00024383,2]
[328400996,1717341046942,-457.31375659,0.000244,2]
[328400997,1717341046951,-166.666666,0.00024482,2]
[328400998,1717341046960,-601.64,0.00024657,2]
[328400999,1717341046968,-798.87426903,0.00024658,7]
[328401000,1717341046977,-200.0,0.00024658,2]
[328401001,1717341046987,-380.0,0.00024658,2]
[328401002,1717341046997,-200.0,0.00024658,15]
[328401003,1717341047006,-500.0,0.00024658,2]
[328401004,1717341047016,-251.17941158,0.00024658,2]
[328401005,1717341047025,-5600.0,0.000247,9]
[328401006,1717341047034,-176.36853821,0.000247,2]
[328401007,1717341047044,-8835.76092255,0.000248,7]
[328401008,1717341047053,-20373.30204507,0.000248,2]
[328401009,1717341047184,-3765.93780773,0.000248,2]
[328401010,1717341128005,525.26787255,9.999e-05,2]
[328401011,1717341149407,489.04932178,9.999e-05,2]
[328401012,1717341246298,1000.0,0.00028,120]
[328401014,1717341582578,-421786.27242253,0.00029986,120]
[328401015,1717341582602,-365440.16781886,0.00029986,30]
[328401016,1717341582628,-500.0,0.00029986,30]
[328401017,1717341582651,-500.0,0.00029986,30]
[328401018,1717341582676,-500.0,0.00029986,30]
[328401019,1717341582706,-500.0,0.00029986,30]
[328401020,1717341582730,-469.5040048,0.00029986,30]
[328401021,1717341582754,-500.0,0.00029986,30]
[328401022,1717341582779,-330.99761827,0.00029986,30]
[328401023,1717341582805,-500.0,0.00029986,30]
[328401024,1717341582830,-500.0,0.00029986,30]
[328401025,1717341582855,-643.52297538,0.00029986,30]
[328401026,1717341582882,-500.0,0.00029986,30]
[328401027,1717341582907,-500.0,0.00029986,30]
[328401028,1717341582932,-500.0,0.00029986,30]
[328401029,1717341582956,-500.0,0.00029986,30]
[328401030,1717341582981,-500.0,0.00029986,30]
[328401031,1717341583004,-500.0,0.00029986,30]
[328401032,1717341583028,-500.0,0.00029986,30]
[328401033,1717341583053,-500.0,0.00029986,30]
[328401034,1717341583078,-500.0,0.00029986,30]
[328401035,1717341583103,-500.0,0.00029986,30]
[328401036,1717341583131,-500.0,0.00029986,30]
[328401037,1717341583155,-500.0,0.00029986,30]
[328401038,1717341583178,-500.0,0.00029986,30]
[328401039,1717341583206,-500.0,0.00029986,30]
[328401040,1717341583230,-500.0,0.00029986,30]
[328401041,1717341583254,-500.0,0.00029986,30]
[328401042,1717341583278,-500.0,0.00029986,30]
[328401043,1717341583304,-500.0,0.00029986,30]
[328401044,1717341583329,-500.0,0.00029986,30]
[328401045,1717341583352,-500.0,0.00029986,30]
[328401046,1717341583378,-500.0,0.00029986,30]
[328401047,1717341583402,-500.0,0.00029986,30]
[328401048,1717341583427,-500.0,0.00029986,30]
[328401049,1717341583451,-500.0,0.00029986,30]
[328401050,1717341583475,-500.0,0.00029986,30]
[328401051,1717341583499,-296.79128484,0.00029986,30]
[328401052,1717341583522,-500.0,0.00029986,30]
[328401053,1717341583546,-500.0,0.00029986,30]
[328401054,1717341583570,-500.0,0.00029986,30]
[328401055,1717341583593,-500.0,0.00029986,30]
[328401056,1717341583618,-500.0,0.00029986,30]
[328401057,1717341583643,-500.0,0.00029986,30]
[328401058,1717341583669,-500.0,0.00029986,30]
[328401059,1717341583695,-351.1796063,0.00029986,30]
[328401060,1717341583720,-500.0,0.00029986,30]
[328401061,1717341583746,-500.0,0.00029986,30]
[328401062,1717341583771,-500.0,0.00029986,30]
[328401063,1717341583795,-500.0,0.00029986,30]
[328401064,1717341583819,-500.0,0.00029986,30]
[328401065,1717341583844,-500.0,0.00029986,30]
[328401066,1717341583869,-500.0,0.00029986,30]
[328401067,1717341583897,-350.41575903,0.00029986,30]
[328401068,1717341583922,-500.0,0.00029986,30]
[328401069,1717341583947,-500.0,0.00029986,30]
[328401070,1717341583973,-500.0,0.00029986,30]
[328401071,1717341583997,-500.0,0.00029986,30]
[328401072,1717341584022,-500.0,0.00029986,30]
[328401073,1717341584046,-500.0,0.00029986,30]
[328401074,1717341584071,-500.0,0.00029986,30]
[328401075,1717341584095,-500.0,0.00029986,30]
[328401076,1717341584123,-500.0,0.00029986,30]
[328401077,1717341584146,-321.95036637,0.00029986,30]
[328401078,1717341584172,-500.0,0.00029986,30]
[328401079,1717341584200,-500.0,0.00029986,30]
[328401080,1717341584225,-500.0,0.00029986,30]
[328401081,1717341584249,-500.0,0.00029986,30]
[328401082,1717341584274,-500.0,0.00029986,30]
[328401083,1717341584297,-500.0,0.00029986,30]
[328401084,1717341584471,-500.0,0.00029986,30]
[328401085,1717341584495,-500.0,0.00029986,30]
[328401086,1717341584518,-500.0,0.00029986,30]
[328401087,1717341584542,-500.0,0.00029986,30]
[328401088,1717341584567,-500.0,0.00029986,30]
[328401089,1717341584592,-500.0,0.00029986,30]
[328401090,1717341584616,-500.0,0.00029986,30]
[328401091,1717341584640,-500.0,0.00029986,30]
[328401092,1717341584663,-500.0,0.00029986,30]
[328401093,1717341584688,-500.0,0.00029986,30]
[328401094,1717341584712,-500.0,0.00029986,30]
[328401095,1717341584736,-500.0,0.00029986,30]
[328401096,1717341584761,-224.3322693,0.00029986,30]
[328401097,1717341584786,-500.0,0.00029986,30]
[328401098,1717341584811,-500.0,0.00029986,30]
[328401099,1717341584836,-500.0,0.00029986,30]
[328401100,1717341584861,-500.0,0.00029986,30]
[328401101,1717341584887,-500.0,0.00029986,30]
[328401102,1717341584913,-500.0,0.00029986,30]
[328401103,1717341584939,-500.0,0.00029986,30]
[328401104,1717341584964,-500.0,0.00029986,30]
[328401105,1717341584990,-500.0,0.00029986,30]
[328401106,1717341585016,-336.67751723,0.00029986,30]
[328401107,1717341585040,-161.75521524,0.00029986,30]
[328401108,1717341585064,-500.0,0.00029986,30]
[328401109,1717341585089,-500.0,0.00029986,30]
[328401110,1717341585114,-500.0,0.00029986,30]
[328401111,1717341585142,-500.0,0.00029986,30]
[328401112,1717341585167,-500.0,0.00029986,30]
[328401113,1717341585191,-500.0,0.00029986,30]
[328401114,1717341585216,-602.08583432,0.00029986,30]
[328401115,1717341585239,-500.0,0.00029986,30]
[328401116,1717341585263,-500.0,0.00029986,30]
[328401117,1717341585290,-500.0,0.00029986,30]
[328401118,1717341585315,-500.0,0.00029986,30]
[328401119,1717341585340,-500.0,0.00029986,30]
[328401120,1717341585364,-500.0,0.00029986,30]
[328401121,1717341585390,-500.0,0.00029986,30]
[328401122,1717341585415,-500.0,0.00029986,30]
[328401123,1717341585438,-500.0,0.00029986,30]
[328401124,1717341585461,-500.0,0.00029986,30]
[328401125,1717341585484,-500.0,0.00029986,30]
[328401126,1717341585509,-500.0,0.00029986,30]
[328401127,1717341585532,-500.0,0.00029986,30]
[328401128,1717341585556,-500.0,0.00029986,30]
[328401129,1717341585580,-500.0,0.00029986,30]
[328401130,1717341585604,-500.0,0.00029986,30]
[328401131,1717341585630,-500.0,0.00029986,30]
[328401132,1717341585653,-500.0,0.00029986,30]
[328401133,1717341586476,-500.0,0.00029986,30]
[328401134,1717341586502,-500.0,0.00029986,30]
[328401135,1717341586527,-500.0,0.00029986,30]
[328401136,1717341586555,-500.0,0.00029986,30]
[328401137,1717341586580,-404.87332739,0.00029986,30]
[328401138,1717341586604,-500.0,0.00029986,30]
[328401139,1717341586631,-500.0,0.00029986,30]
[328401140,1717341586657,-500.0,0.00029986,30]
[328401141,1717341586681,-500.0,0.00029986,30]
[328401142,1717341586706,-500.0,0.00029986,30]
[328401143,1717341586731,-544.72449046,0.00029986,30]
[328401144,1717341586756,-500.0,0.00029986,30]
[328401145,1717341586779,-500.0,0.00029986,30]
[328401146,1717341587194,-500.0,0.00029986,30]
[328401147,1717341587220,-500.0,0.00029986,30]
[328401148,1717341587245,-500.0,0.00029986,30]
[328401149,1717341587270,-500.0,0.00029986,30]
[328401150,1717341587294,-500.0,0.00029986,30]
[328401151,1717341587319,-500.0,0.00029986,30]
[328401152,1717341587344,-500.0,0.00029986,30]
[328401153,1717341587368,-500.0,0.00029986,30]
[328401154,1717341587395,-500.0,0.00029986,30]
[328401155,1717341587420,-500.0,0.00029986,30]
[328401156,1717341587444,-500.0,0.00029986,30]
[328401157,1717341587470,-500.0,0.00029986,30]
[328401158,1717341587496,-500.0,0.00029986,30]
[328401159,1717341587521,-500.0,0.00029986,30]
[328401160,1717341587545,-500.0,0.00029986,30]
[328401161,1717341587569,-500.0,0.00029986,30]
[328401162,1717341587593,-500.0,0.00029986,30]
[328401163,1717341587617,-500.0,0.00029986,30]
[328401164,1717341587644,-500.0,0.00029986,30]
[328401165,1717341587667,-500.0,0.00029986,30]
[328401166,1717341587693,-500.0,0.00029986,30]
[328401167,1717341587719,-500.0,0.00029986,30]
[328401168,1717341587745,-500.0,0.00029986,30]
[328401169,1717341587770,-500.0,0.00029986,30]
[328401170,1717341587795,-618.62771887,0.00029986,30]
[328401171,1717341587820,-157.14279164,0.00029986,30]
[328401172,1717341587844,-500.0,0.00029986,30]
[328401173,1717341587869,-500.0,0.00029986,30]
[328401174,1717341587898,-387.27377391,0.00029986,30]
[328401175,1717341587923,-500.0,0.00029986,30]
[328401176,1717341587949,-500.0,0.00029986,30]
[328401177,1717341587975,-500.0,0.00029986,30]
[328401178,1717341588000,-500.0,0.00029986,30]
[328401179,1717341588024,-500.0,0.00029986,30]
[328401180,1717341588049,-500.0,0.00029986,30]
[328401181,1717341588074,-500.0,0.00029986,30]
[328401182,1717341588099,-500.0,0.00029986,30]
[328401183,1717341588128,-500.0,0.00029986,30]
[328401184,1717341588154,-500.0,0.00029986,30]
[328401185,1717341588180,-500.0,0.00029986,30]
[328401186,1717341588208,-500.0,0.00029986,30]
[328401187,1717341588233,-500.0,0.00029986,30]
[328401188,1717341588373,-500.0,0.00029986,30]
[328401189,1717341588399,-500.0,0.00029986,30]
[328401190,1717341588423,-500.0,0.00029986,30]
[328401191,1717341588447,-573.61396189,0.00029986,30]
[328401192,1717341588473,-500.0,0.00029986,30]
[328401193,1717341588497,-500.0,0.00029986,30]
[328401194,1717341588520,-500.0,0.00029986,30]
[328401195,1717341588549,-500.0,0.00029986,30]
[328401196,1717341588574,-500.0,0.00029986,30]
[328401197,1717341588599,-500.0,0.00029986,30]
[328401198,1717341588623,-500.0,0.00029986,30]
[328401199,1717341588648,-500.0,0.00029986,30]
[328401200,1717341588672,-500.0,0.00029986,30]
[328401201,1717341588697,-500.0,0.00029986,30]
[328401202,1717341588720,-500.0,0.00029986,30]
[328401203,1717341588745,-500.0,0.00029986,30]
[328401204,1717341588770,-500.0,0.00029986,30]
[328401205,1717341588795,-500.0,0.00029986,30]
[328401206,1717341588819,-500.0,0.00029986,30]
[328401207,1717341588843,-153.50399767,0.00029986,30]
[328401208,1717341588867,-500.0,0.00029986,30]
[328401209,1717341588893,-500.0,0.00029986,30]
[328401210,1717341588917,-500.0,0.00029986,30]
[328401211,1717341588941,-500.0,0.00029986,30]
[328401212,1717341588965,-500.0,0.00029986,30]
[328401213,1717341588989,-500.0,0.00029986,30]
[328401214,1717341589016,-413.03251736,0.00029986,30]
[328401215,1717341589042,-500.0,0.00029986,30]
[328401216,1717341589067,-501.58611876,0.00029986,30]
[328401217,1717341589093,-509.69,0.00029986,30]
[328401218,1717341589119,-509.69,0.00029986,30]
[328401219,1717341589147,-509.69,0.00029986,30]
[328401220,1717341589171,-509.69,0.00029986,30]
[328401221,1717341589196,-509.69,0.00029986,30]
[328401222,1717341589221,-509.69,0.00029986,30]
[328401223,1717341589246,-509.69,0.00029986,30]
[328401224,1717341589271,-509.69,0.00029986,30]
[328401225,1717341589296,-509.69,0.00029986,30]
[328401226,1717341589321,-500.0,0.00029986,30]
[328401227,1717341589346,-500.0,0.00029986,30]
[328401228,1717341589371,-509.69,0.00029986,30]
[328401229,1717341589397,-500.0,0.00029986,30]
[328401230,1717341589420,-500.0,0.00029986,30]
[328401231,1717341589446,-509.69,0.00029986,30]
[328401232,1717341589471,-500.0,0.00029986,30]
[328401233,1717341589496,-509.69,0.00029986,30]
[328401234,1717341589523,-500.0,0.00029986,30]
[328401235,1717341589551,-509.69,0.00029986,30]
[328401236,1717341589576,-500.0,0.00029986,30]
[328401237,1717341589601,-509.69,0.00029986,30]
[328401238,1717341589626,-500.0,0.00029986,30]
[328401239,1717341589650,-509.69,0.00029986,30]
[328401240,1717341589675,-500.0,0.00029986,30]
[328401241,1717341589701,-500.0,0.00029986,30]
[328401242,1717341589726,-509.69,0.00029986,30]
[328401243,1717341589751,-509.69,0.00029986,30]
[328401244,1717341589776,-500.0,0.00029986,30]
[328401245,1717341589802,-509.69,0.00029986,30]
[328401246,1717341589827,-509.69,0.00029986,30]
[328401247,1717341589852,-500.0,0.00029986,30]
[328401248,1717341589878,-509.69,0.00029986,30]
[328401249,1717341589903,-500.0,0.00029986,30]
[328401250,1717341589929,-509.69,0.00029986,30]
[328401251,1717341589953,-500.0,0.00029986,30]
[328401252,1717341590002,-500.0,0.00029986,30]
[328401253,1717341590052,-509.69,0.00029986,30]
[328401254,1717341590100,-509.69,0.00029986,30]
[328401255,1717341590151,-509.87168066,0.00029986,30]
[328401256,1717341590203,-477.20626832,0.00029986,30]
[328401257,1717341590252,-500.0,0.00029986,30]
[328401258,1717341590298,-500.0,0.00029986,30]
[328401259,1717341590349,-485.11671757,0.00029986,30]
[328401260,1717341590399,-500.0,0.00029986,30]
[328401261,1717341590455,-500.0,0.00029986,30]
[328401262,1717341590509,-500.0,0.00029986,30]
[328401263,1717341590558,-500.0,0.00029986,30]
[328401264,1717341590607,-500.0,0.00029986,30]
[328401265,1717341590655,-500.0,0.00029986,30]
[328401266,1717341590703,-500.0,0.00029986,30]
[328401267,1717341590756,-500.0,0.00029986,30]
[328401268,1717341590806,-500.0,0.00029986,30]
[328401269,1717341590858,-500.0,0.00029986,30]
[328401270,1717341590908,-500.0,0.00029986,30]
[328401271,1717341590957,-500.0,0.00029986,30]
[328401272,1717341591006,-500.0,0.00029986,30]
[328401273,1717341591052,-547.00017153,0.00029986,30]
[328401274,1717341591100,-500.0,0.00029986,30]
[328401275,1717341591146,-500.0,0.00029986,30]
[328401276,1717341591194,-500.0,0.00029986,30]
[328401277,1717341591243,-500.0,0.00029986,30]
[328401278,1717341591291,-500.0,0.00029986,30]
[328401279,1717341591344,-500.0,0.00029986,30]
[328401280,1717341591392,-500.0,0.00029986,30]
[328401281,1717341591441,-500.0,0.00029986,30]
[328401282,1717341591489,-500.0,0.00029986,30]
[328401283,1717341591538,-500.0,0.00029986,30]
[328401284,1717341591587,-500.0,0.00029986,30]
[328401285,1717341591638,-500.0,0.00029986,30]
[328401286,1717341591697,-439.0592401,0.00029986,30]
[328401287,1717341591747,-500.0,0.00029986,30]
[328401288,1717341591799,-500.0,0.00029986,30]
[328401289,1717341591847,-500.0,0.00029986,30]
[328401290,1717341591898,-500.0,0.00029986,30]
[328401291,1717341591947,-500.0,0.00029986,30]
[328401292,1717341592156,-500.0,0.00029986,30]
[328401293,1717341592207,-500.0,0.00029986,30]
[328401294,1717341592259,-247.42360969,0.00029986,30]
[328401295,1717341592310,-500.0,0.00029986,30]
[328401296,1717341592357,-500.0,0.00029986,30]
[328401297,1717341592408,-500.0,0.00029986,30]
[328401298,1717341592460,-500.0,0.00029986,30]
[328401299,1717341592508,-500.0,0.00029986,30]
[328401300,1717341592555,-500.0,0.00029986,30]
[328401301,1717341592603,-500.0,0.00029986,30]
[328401302,1717341592651,-500.0,0.00029986,30]
[328401303,1717341592699,-500.0,0.00029986,30]
[328401304,1717341592750,-500.0,0.00029986,30]
[328401305,1717341592796,-500.0,0.00029986,30]
[328401306,1717341592846,-500.0,0.00029986,30]
[328401307,1717341592895,-500.0,0.00029986,30]
[328401308,1717341592942,-500.0,0.00029986,30]
[328401309,1717341592990,-500.0,0.00029986,30]
[328401310,1717341593037,-500.0,0.00029986,30]
[328401311,1717341593085,-500.0,0.00029986,30]
[328401312,1717341593137,-500.0,0.00029986,30]
[328401313,1717341593192,-500.0,0.00029986,30]
[328401314,1717341593241,-605.98697504,0.00029986,30]
[328401315,1717341593289,-1365.33,0.00029986,30]
[328401316,1717341593340,-1365.33,0.00029986,30]
[328401317,1717341593392,-1365.33,0.00029986,30]
[328401318,1717341593441,-1365.33,0.00029986,30]
[328401319,1717341593488,-1365.33,0.00029986,30]
[328401320,1717341593537,-1365.33,0.00029986,30]
[328401321,1717341593586,-1365.33,0.00029986,30]
[328401322,1717341593638,-1365.33,0.00029986,30]
[328401323,1717341593692,-1365.33,0.00029986,30]
[328401324,1717341593740,-1365.33,0.00029986,30]
[328401325,1717341593791,-1365.33,0.00029986,30]
[328401326,1717341593842,-1365.33,0.00029986,30]
[328401327,1717341593896,-1365.33,0.00029986,30]
[328401328,1717341593954,-1365.33,0.00029986,30]
[328401329,1717341594016,-595.9795024,0.00029986,30]
[328401330,1717341594068,-1365.33,0.00029986,30]
[328401331,1717341594118,-1365.33,0.00029986,30]
[328401332,1717341594170,-1365.33,0.00029986,30]
[328401333,1717341594220,-1365.33,0.00029986,30]
[328401334,1717341594270,-1365.33,0.00029986,30]
[328401335,1717341594318,-1365.33,0.00029986,30]
[328401336,1717341594367,-1365.33,0.00029986,30]
[328401337,1717341594417,-1365.33,0.00029986,30]
[328401338,1717341594467,-500.0,0.00029986,30]
[328401339,1717341594517,-1365.33,0.00029986,30]
[328401340,1717341594568,-1365.55102426,0.00029986,30]
[328401341,1717341594618,-500.0,0.00029986,30]
[328401342,1717341594664,-500.0,0.00029986,30]
[328401343,1717341594714,-500.0,0.00029986,30]
[328401344,1717341594765,-500.0,0.00029986,30]